fUST/lending_fUST_20260426
["ID","MTS","AMOUNT","RATE_DAILY","PERIOD"]
[421136116,1777143042695,-703.856739,0.00015865,2]
[421136117,1777143042704,-703.856739,0.00015865,2]
[421136118,1777143042714,-703.856739,0.00015865,2]
[421136119,1777143042723,-151.0,0.00015865,2]
[421136120,1777143042732,-151.0,0.00015865,2]
[421136121,1777143042742,-151.0,0.00015865,2]
[421136122,1777143042751,-151.0,0.00015865,2]
[421136123,1777143042760,-151.0,0.00015865,2]
[421136124,1777143042769,-151.0,0.00015865,2]
[421136125,1777143042779,-500.0,0.00015865,2]
[421136127,1777143042788,-151.0,0.00015866,2]
[421136129,1777143042798,-192.357023,0.00015866,2]
[421136131,1777143042807,-500.0,0.00015866,2]
[421136134,1777143042817,-500.0,0.00015866,2]
[421136136,1777143042826,-500.0,0.00015866,2]
[421136137,1777143042837,-151.0,0.00015867,2]
[421136138,1777143042848,-703.856739,0.00015867,2]
[421136139,1777143042857,-703.856739,0.00015867,2]
[421136140,1777143042867,-703.856739,0.00015867,2]
[421136141,1777143042877,-703.856739,0.00015867,2]
[421136142,1777143042886,-151.0,0.00015867,2]
[421136143,1777143042896,-151.0,0.00015867,2]
[421136144,1777143042907,-151.0,0.00015867,2]
[421136146,1777143042917,-2230.315306,0.00015875,2]
[421136148,1777143042926,-218.149,0.00015947,2]
[421136151,1777143042936,-186.89740796,0.00015947,2]
[421136153,1777143042947,-162.04419411,0.00015948,2]
[421136155,1777143042957,-500.0,0.00015964,2]
[421136157,1777143042966,-151.0,0.00015965,2]
[421136159,1777143042975,-151.0,0.00015965,2]
[421136161,1777143042985,-151.0,0.00015965,2]
[421136163,1777143042994,-159.125516,0.00015965,2]
[421136165,1777143043003,-151.0,0.00015965,2]
[421136167,1777143043013,-151.0,0.00015965,2]
[421136169,1777143043022,-154.033607,0.00015965,2]
[421136171,1777143043031,-703.856739,0.00015965,2]
[421136173,1777143043040,-703.856739,0.00015965,2]
[421136175,1777143043050,-703.856739,0.00015965,2]
[421136177,1777143043059,-703.856739,0.00015965,2]
[421136178,1777143043068,-151.0,0.00015965,2]
[421136179,1777143043077,-151.0,0.00015965,2]
[421136180,1777143043086,-151.0,0.00015965,2]
[421136181,1777143043096,-500.0,0.00015965,2]
[421136182,1777143043105,-151.0,0.00015966,2]
[421136183,1777143043115,-151.0,0.00015966,2]
[421136184,1777143043124,-151.0,0.00015966,2]
[421136185,1777143043133,-151.0,0.00015966,2]
[421136186,1777143043143,-151.0,0.00015966,2]
[421136187,1777143043152,-151.0,0.00015966,2]
[421136188,1777143043161,-151.0,0.00015966,2]
[421136189,1777143043170,-151.0,0.00015966,2]
[421136190,1777143043180,-703.856739,0.00015966,2]
[421136191,1777143043189,-703.856739,0.00015966,2]
[421136192,1777143043198,-703.856739,0.00015966,2]
[421136193,1777143043208,-703.856744,0.00015966,2]
[421136194,1777143043217,-151.0,0.00015966,2]
[421136195,1777143043226,-151.0,0.00015966,2]
[421136196,1777143043236,-294.507788,0.00015966,2]
[421136197,1777143043245,-500.0,0.00015966,2]
[421136198,1777143043254,-569.53,0.00015966,2]
[421136199,1777143043263,-25138.0069271,0.00015967,2]
[421136200,1777143043272,-2526.7367008,0.00015967,2]
[421136201,1777143043282,-151.0,0.00015967,2]
[421136202,1777143043291,-151.0,0.00015967,2]
[421136203,1777143043301,-151.0,0.00015967,2]
[421136204,1777143043311,-151.0,0.00015967,2]
[421136205,1777143043320,-151.0,0.00015967,2]
[421136206,1777143043329,-151.0,0.00015967,2]
[421136207,1777143043338,-151.0,0.00015967,2]
[421136208,1777143043348,-151.0,0.00015967,2]
[421136209,1777143043357,-151.0,0.00015967,2]
[421136210,1777143043366,-151.0,0.00015967,2]
[421136211,1777143043375,-151.0,0.00015967,2]
[421136212,1777143043384,-199.641148,0.00015967,2]
[421136213,1777143043394,-1707.05236362,0.00015978,2]
[421136214,1777143043403,-151.11,0.00015996,2]
[421136215,1777143043412,-151.1,0.00015998,2]
[421136217,1777143043421,-500.0,0.00016087,2]
[421136219,1777143043431,-151.0,0.00016088,2]
[421136221,1777143043440,-151.0,0.00016088,2]
[421136223,1777143043449,-151.0,0.00016089,2]
[421136225,1777143043458,-151.0,0.00016089,2]
[421136227,1777143043469,-151.0,0.00016089,2]
[421136229,1777143043478,-151.0,0.00016089,2]
[421136231,1777143043487,-151.0,0.00016089,2]
[421136233,1777143043496,-233.9745,0.00016089,2]
[421136235,1777143043506,-245.208075,0.0001611,7]
[421136237,1777143043515,-1707.05236362,0.00016134,2]
[421136239,1777143043524,-500.0,0.00016139,2]
[421136241,1777143043534,-160.0,0.0001616,2]
[421136243,1777143043543,-34136.043784,0.0001616,2]
[421136245,1777143043552,-68112.087569,0.0001616,2]
[421136247,1777143043561,-425922.33742333,0.0001617,2]
[421136253,1777143043831,-3314.75668427,0.0001617,2]
[421136256,1777143046667,-3879.57872997,0.00016089,2]
[421136257,1777143046676,-16520.97127028,0.0001617,2]
[421136258,1777143046840,-23007.70474939,0.0001617,2]
[421136259,1777143046852,-43893.49936851,0.0001617,2]
[421136340,1777144232491,-188.92765712,0.00012959,3]
[421136341,1777144232501,-150.0,0.00012972,2]
[421136342,1777144232510,-604.0,0.00012972,2]
[421136343,1777144232519,-2063.85544935,0.00013063,2]
[421136344,1777144232530,-395.5819895,0.00013063,2]
[421136345,1777144232539,-180.21087091,0.00013365,14]
[421136346,1777144232549,-156.0,0.00013699,2]
[421136347,1777144232558,-85.16287311,0.00013699,2]
[421136348,1777144232572,-914.83712689,0.00013699,2]
[421136350,1777144232582,-177.0,0.00014972,2]
[421136352,1777144232591,-341.41047274,0.00015047,2]
[421136354,1777144232600,-341.41047272,0.00015086,2]
[421136356,1777144232610,-341.41047272,0.00015125,2]
[421136358,1777144232619,-300.0,0.00015145,2]
[421136360,1777144232628,-195.0,0.00015145,2]
[421136362,1777144232637,-497.53627348,0.00015146,2]
[421136364,1777144232647,-500.0,0.00015146,2]
[421136366,1777144232656,-500.0,0.00015146,2]
[421136368,1777144232665,-235.68419523,0.00015146,2]
[421136370,1777144232674,-198.27539144,0.00015146,2]
[421136372,1777144232684,-500.0,0.00015146,2]
[421136374,1777144232693,-500.0,0.00015146,2]
[421136376,1777144232703,-500.0,0.00015146,2]
[421136378,1777144232712,-401.62225651,0.00015146,2]
[421136380,1777144232721,-88319.90231557,0.00015147,2]
[421136516,1777144243693,-15674.1178605,0.00015147,2]
[421136517,1777144243799,-8895.22441537,0.00015147,2]
[421136688,1777145441124,-150.0,0.0001285,2]
[421136689,1777145441133,-602.0,0.0001285,2]
[421136690,1777145441142,-372.53034424,0.000135,2]
[421136691,1777145441151,-1062.75570247,0.00013699,2]
[421136697,1777145446953,-437.24429753,0.00013699,2]
[421136699,1777145446962,-1500.0,0.00013699,2]
[421136700,1777145446971,-1000.0,0.00013699,2]
[421136702,1777145446980,-929.80570247,0.00013809,2]
[421136709,1777145447237,-1528.50655834,0.00013809,2]
[421136710,1777145447246,-220.0865898,0.0001425,2]
[421136711,1777145447255,-151.0,0.00014797,2]
[421136712,1777145447265,-177.0,0.0001485,2]
[421136714,1777145447274,-160.0,0.00014897,2]
[421136715,1777145447284,-2212.04232186,0.00015031,2]
[421136717,1777145447292,-139.17119268,0.00015046,2]
[421136996,1777146638168,-1655.73839223,0.00012978,2]
[421136997,1777146638178,-606.0,0.00013109,2]
[421136998,1777146638188,-150.0,0.00013293,2]
[421136999,1777146638197,-1000.0,0.00013699,2]
[421137000,1777146638206,-183.58,0.00013791,2]
[421137001,1777146638216,-160.0,0.00013852,2]
[421137002,1777146638224,-2435.09299523,0.00013995,2]
[421137003,1777146638234,-300.0,0.00014746,2]
[421137004,1777146638243,-2136.92030013,0.00014747,2]
[421137005,1777146638253,-325.424704,0.00014755,2]
[421137006,1777146638262,-325.4528442,0.00014755,2]
[421137007,1777146638272,-325.4528442,0.00014797,2]
[421137008,1777146638281,-500.0,0.00014846,2]
[421137009,1777146638291,-500.0,0.00014846,2]
[421137010,1777146638300,-408.99987152,0.00014846,2]
[421137011,1777146638310,-500.0,0.00014846,2]
[421137012,1777146638319,-500.0,0.00014846,2]
[421137013,1777146638328,-500.0,0.00014846,2]
[421137014,1777146638338,-500.0,0.00014846,2]
[421137015,1777146638347,-500.0,0.00014846,2]
[421137016,1777146638356,-478.78534887,0.00014846,2]
[421137017,1777146638366,-394.65659326,0.00014846,2]
[421137018,1777146638375,-500.0,0.00014846,2]
[421137019,1777146638384,-530.69185656,0.00014846,2]
[421137020,1777146638393,-500.0,0.00014846,2]
[421137021,1777146638403,-500.0,0.00014846,2]
[421137022,1777146638412,-500.0,0.00014846,2]
[421137023,1777146638422,-500.0,0.00014846,2]
[421137024,1777146638431,-454.62188576,0.00014846,2]
[421137025,1777146638440,-500.0,0.00014846,2]
[421137026,1777146638450,-500.0,0.00014846,2]
[421137027,1777146638459,-500.0,0.00014846,2]
[421137028,1777146638468,-500.0,0.00014846,2]
[421137029,1777146638477,-500.0,0.00014846,2]
[421137030,1777146638486,-500.0,0.00014846,2]
[421137031,1777146638496,-379.65734998,0.00014846,2]
[421137032,1777146638506,-500.0,0.00014846,2]
[421137033,1777146638515,-500.0,0.00014846,2]
[421137034,1777146638524,-500.0,0.00014846,2]
[421137035,1777146638534,-416.14839847,0.00014846,2]
[421137036,1777146638543,-155.34517117,0.00014846,2]
[421137037,1777146638552,-33593.8397762,0.00014847,2]
[421137048,1777146640271,-744.24204284,0.00014847,2]
[421137059,1777146642998,-841.45616995,0.00014847,2]
[421137064,1777146646357,-14919.1728593,0.00014847,2]
[421137065,1777146646367,-23192.04092175,0.00014847,2]
[421137066,1777146646376,-1511.46481845,0.00014945,2]
[421137067,1777146646386,-5344.52,0.00014946,2]
[421137068,1777146646395,-5344.52,0.00014946,2]
[421137069,1777146646404,-5344.52,0.00014946,2]
[421137070,1777146646413,-5344.52,0.00014946,2]
[421137071,1777146646422,-500.0,0.00014946,2]
[421137072,1777146646431,-1511.46481844,0.00014996,2]
[421137073,1777146646440,-500.0,0.00014996,2]
[421137074,1777146646449,-1511.46481844,0.00015046,2]
[421137075,1777146646459,-1511.46481844,0.00015097,2]
[421137076,1777146646468,-1511.46481844,0.00015147,2]
[421137077,1777146646477,-5344.52,0.00015245,2]
[421137078,1777146646486,-5344.52,0.00015245,2]
[421137079,1777146646495,-5344.52,0.00015245,2]
[421137080,1777146646504,-5344.52,0.00015245,2]
[421137081,1777146646513,-5344.52,0.00015245,2]
[421137082,1777146646522,-151.0,0.00015246,2]
[421137083,1777146646532,-151.0,0.00015246,2]
[421137084,1777146646541,-151.0,0.00015246,2]
[421137085,1777146646550,-151.0,0.00015246,2]
[421137086,1777146646560,-244.999465,0.00015246,2]
[421137087,1777146646570,-5344.52,0.00015246,2]
[421137088,1777146646579,-5344.52,0.00015246,2]
[421137089,1777146646588,-5344.52,0.00015246,2]
[421137090,1777146646597,-5344.52,0.00015246,2]
[421137091,1777146646606,-5344.52,0.00015246,2]
[421137092,1777146646616,-5344.52,0.00015246,2]
[421137093,1777146646626,-5344.52,0.00015246,2]
[421137094,1777146646635,-5344.52,0.00015246,2]
[421137095,1777146646645,-5344.52,0.00015246,2]
[421137096,1777146646654,-5344.52,0.00015246,2]
[421137097,1777146646664,-5344.52,0.00015246,2]
[421137098,1777146646674,-5344.52,0.00015246,2]
[421137099,1777146646683,-5344.52,0.00015246,2]
[421137100,1777146646693,-5344.52,0.00015246,2]
[421137101,1777146646702,-5344.56880732,0.00015246,2]
[421137102,1777146646712,-86830.67960988,0.00015247,2]
[421137299,1777147832119,-454.81217032,0.00012,2]
[421137501,1777147838289,-4086.83690465,0.00012,2]
[421137598,1777147846721,-4971.21585982,0.00012,2]
[421137599,1777147846731,-589.0,0.00012,2]
[421137600,1777147846740,-150.0,0.00012408,2]
[421137601,1777147846750,-160.0,0.00013593,2]
[421137602,1777147846759,-1000.0,0.00013699,2]
[421137603,1777147846769,-177.0,0.00014408,2]
[421137604,1777147846779,-2637.02256094,0.00014647,2]
[421137887,1777149038604,-1000.0,0.00013699,2]
[421137888,1777149038614,-615.0,0.00013699,2]
[421137889,1777149038623,-140.54277787,0.00013817,2]
[421137906,1777149046961,-9.45722213,0.00013817,2]
[421137907,1777149046970,-160.0,0.00014663,2]
[421137908,1777149046979,-514.2489793,0.00014746,2]
[421137909,1777149046988,-3389.07853437,0.00014865,2]
[421137910,1777149046998,-300.0,0.00014899,2]
[421137911,1777149047007,-262.96427615,0.000149,2]
[421137995,1777150232557,-259.14438296,0.00013606,2]
[421138053,1777150241492,-300.18062377,0.00013606,2]
[421138119,1777150244484,-54.67499327,0.00013606,2]
[421138121,1777150244494,-160.0,0.00013606,2]
[421138123,1777150244504,-150.0,0.00013638,2]
[421138125,1777150244513,-1000.0,0.00013699,2]
[421138127,1777150244523,-2400.23470007,0.00013809,2]
[421138129,1777150244533,-213.0416136,0.00014679,2]
[421138131,1777150244543,-3985.85056623,0.00014847,2]
[421138145,1777150247310,-12332.71261088,0.00014847,2]
[421138146,1777150247320,-371.11071716,0.000149,2]
[421138147,1777150247329,-371.11071715,0.000149,2]
[421138148,1777150247338,-371.11071715,0.000149,2]
[421138149,1777150247347,-2150.738,0.00014938,2]
[421138150,1777150247356,-341.20760283,0.00014953,2]
[421138151,1777150247365,-500.0,0.00014953,2]
[421138153,1777150247374,-272.80065451,0.00014953,2]
[421138155,1777150247384,-500.0,0.00014953,2]
[421138157,1777150247393,-523.46517747,0.00014953,2]
[421138159,1777150247402,-33850.09121675,0.00014954,2]
[421138532,1777151440279,-577.99425158,0.00013512,2]
[421138533,1777151440289,-612.0,0.00013512,2]
[421138534,1777151440299,-150.0,0.00013612,2]
[421138535,1777151440308,-1000.0,0.00013699,2]
[421138536,1777151440317,-167.67360702,0.00013752,2]
[421138537,1777151440327,-1124.86384018,0.00013909,2]
[421138571,1777151446449,-3393.67497302,0.00013909,2]
[421138572,1777151446459,-300.0,0.00014699,2]
[421138573,1777151446469,-1138.0,0.00014699,2]
[421138574,1777151446478,-151.0,0.000147,2]
[421138575,1777151446487,-160.0,0.0001476,2]
[421138576,1777151446496,-626.188614,0.00014955,2]
[421138577,1777151446505,-117.68873701,0.00014955,2]
[421138652,1777152632005,-614.0,0.00013622,2]
[421138653,1777152632015,-160.0,0.00013622,2]
[421138655,1777152632025,-150.0,0.00013635,2]
[421138656,1777152632034,-1000.0,0.00013699,2]
[421138657,1777152632043,-167.67360703,0.00013755,2]
[421138658,1777152632052,-300.0,0.000144,2]
[421138659,1777152632061,-3880.0744183,0.00014401,2]
[421138660,1777152632071,-432.2997912,0.00014401,2]
[421138662,1777152632080,-212.434621,0.000147,2]
[421138663,1777152632089,-151.0,0.000147,2]
[421138664,1777152632099,-3967.0,0.00014702,2]
[421138666,1777152632107,-657.0,0.00014702,2]
[421138667,1777152632117,-389.0,0.00014702,2]
[421138668,1777152632126,-617.0,0.00014702,2]
[421138669,1777152632135,-1127.0,0.00014702,2]
[421138670,1777152632144,-663.0,0.00014702,2]
[421138671,1777152632154,-152.0,0.00014749,7]
[421138672,1777152632164,-151.0,0.00014946,2]
[421138673,1777152632174,-537.6845,0.00014946,2]
[421138674,1777152632183,-2150.738,0.00014946,2]
[421138675,1777152632192,-5271.97449259,0.00014955,2]
[421138676,1777152632201,-167.0,0.00014955,2]
[421138677,1777152632211,-151.0,0.00014955,2]
[421138678,1777152632220,-151.0,0.00014955,2]
[421138679,1777152632229,-151.0,0.00014955,2]
[421138680,1777152632238,-151.0,0.00014955,2]
[421138681,1777152632247,-151.0,0.00014955,2]
[421138682,1777152632256,-5488.79781621,0.00015,2]
[421138683,1777152632266,-151.0,0.00015,2]
[421138684,1777152632275,-151.0,0.00015,2]
[421138685,1777152632284,-151.0,0.00015,2]
[421138686,1777152632294,-151.0,0.00015,2]
[421138687,1777152632304,-2046.01562256,0.00015,2]
[421138688,1777152632313,-425.06442059,0.00015001,2]
[421138689,1777152632322,-2413.59625703,0.00015075,2]
[421138690,1777152632331,-151.0,0.000151,2]
[421138691,1777152632341,-151.0,0.00015138,2]
[421138692,1777152632350,-151.0,0.00015138,2]
[421138693,1777152632359,-162.380719,0.00015138,2]
[421138694,1777152632369,-445.202766,0.00015138,2]
[421138695,1777152632378,-162.380719,0.00015138,2]
[421138696,1777152632387,-537.6845,0.00015138,2]
[421138697,1777152632397,-151.0,0.00015138,2]
[421138698,1777152632406,-151.0,0.00015146,2]
[421138699,1777152632415,-268.30947992,0.00015146,2]
[421138700,1777152632424,-151.0,0.00015147,2]
[421138701,1777152632433,-197.35058863,0.00015147,2]
[421138702,1777152632443,-10341.27365229,0.00015147,2]
[421138703,1777152632451,-800.0,0.000152,2]
[421138704,1777152632461,-400.0,0.000152,4]
[421138705,1777152632470,-257.0,0.000152,2]
[421138706,1777152632479,-6885.36445349,0.00015247,2]
[421138707,1777152632492,-5722.21950213,0.00015247,2]
[421138708,1777152632503,-12836.60096371,0.00015247,2]
[421138746,1777152638512,-874.57542932,0.00014702,2]
[421138748,1777152638521,-31254.0440083,0.00015247,2]
[421138751,1777152638533,-3442.80000018,0.00015247,2]
[421138818,1777152643345,-6264.6768635,0.00015247,2]
[421138819,1777152643357,-23713.3812429,0.00015247,2]
[421138820,1777152643368,-5029.77788828,0.00015247,2]
[421138821,1777152643379,-1149.210458,0.00015247,2]
[421138822,1777152643390,-7545.19668423,0.00015247,2]
[421138825,1777152646699,-1011.56306623,0.00015247,2]
[421138826,1777152646721,-1859.89421702,0.00015247,2]
[421138936,1777153832294,-1000.0,0.00013699,2]
[421138938,1777153832304,-615.0,0.00013699,2]
[421138940,1777153832313,-150.0,0.00013812,2]
[421138941,1777153832323,-153.0704978,0.000147,2]
[421138942,1777153832332,-228.0,0.00014702,2]
[421138943,1777153832341,-153.0,0.00014702,2]
[421138944,1777153832350,-157.88047092,0.00014893,2]
[421138945,1777153832360,-300.0,0.00014945,2]
[421138946,1777153832370,-598.00402032,0.00014946,2]
[421138947,1777153832380,-501.36919788,0.00014946,2]
[421138948,1777153832390,-254.70568989,0.00014946,2]
[421138950,1777153832405,-245.29431011,0.00014946,2]
[421138952,1777153832414,-241.04042844,0.00014946,2]
[421138954,1777153832423,-500.0,0.00014946,2]
[421138956,1777153832432,-500.0,0.00014946,2]
[421138958,1777153832441,-251.03537282,0.00014946,2]
[421138996,1777153838757,-248.96462718,0.00014946,2]
[421138997,1777153838767,-500.0,0.00014946,2]
[421138998,1777153838776,-500.0,0.00014946,2]
[421138999,1777153838786,-13678.83785467,0.00014947,2]
[421139000,1777153838810,-203657.93971978,0.00014947,2]
[421139001,1777153838819,-160.0,0.00014961,2]
[421139002,1777153838828,-157.88047088,0.00014967,2]
[421139003,1777153838838,-2150.738,0.00015029,2]
[421139004,1777153838847,-157.88047088,0.00015042,2]
[421139005,1777153838856,-157.88047088,0.00015116,2]
[421139006,1777153838866,-157.88047088,0.0001519,2]
[421139007,1777153838876,-432.2997912,0.00015191,2]
[421139008,1777153838885,-1470.9319512,0.00015191,2]
[421139010,1777153838894,-1058.9391566,0.00015191,2]
[421139011,1777153838904,-194.2,0.000152,2]
[421139012,1777153838913,-162.380719,0.00015238,2]
[421139013,1777153838922,-162.380719,0.00015238,2]
[421139014,1777153838931,-151.0,0.00015238,2]
[421139015,1777153838940,-445.202766,0.00015238,2]
[421139016,1777153838950,-537.6845,0.00015238,2]
[421139017,1777153838959,-3421.25413741,0.00015247,2]
[421139020,1777153839184,-38846.73770719,0.00015247,2]
[421139038,1777153840826,-475.5589574,0.00015247,2]
[421139058,1777153843531,-2943.40244164,0.00015247,2]
[421139065,1777153843586,-3928.60947472,0.00015247,2]
[421139067,1777153843597,-1650.95049077,0.00015247,2]
[421139110,1777153846862,-3348.65498217,0.00015247,2]
[421139120,1777153879925,500.0,1e-08,2]
[421139121,1777153879952,500.0,1e-08,2]
[421139122,1777153879979,500.0,1e-08,2]
[421139123,1777153880006,500.0,1e-08,2]
[421139124,1777153880033,500.0,1e-08,2]
[421139125,1777153880060,500.0,1e-08,2]
[421139126,1777153880087,500.0,1e-08,2]
[421139127,1777153880278,500.0,1e-08,2]
[421139128,1777153880306,39899.38757582,1e-08,2]
[421139129,1777153881154,43899.38757582,1e-08,2]
[421139130,1777153882407,43899.38757582,1e-08,2]
[421139131,1777153883908,43899.38757582,1e-08,2]
[421139132,1777153885495,43899.38757582,1e-08,2]
[421139133,1777153886726,43899.38757582,1e-08,2]
[421139134,1777153887979,43899.38757582,1e-08,2]
[421139135,1777153889242,43899.38757582,1e-08,2]
[421139136,1777153890512,43899.38757582,1e-08,2]
[421139137,1777153962054,16375.09551216,1e-08,2]
[421139138,1777153963283,16375.09551216,1e-08,2]
[421139139,1777153964554,16375.09551216,1e-08,2]
[421139140,1777153965786,353.75373559,1e-08,2]
[421139141,1777153965810,16021.34177657,1e-08,2]
[421139142,1777153967026,16375.09551216,1e-08,2]
[421139143,1777153968277,16375.09551216,1e-08,2]
[421139144,1777153969534,16375.09551216,1e-08,2]
[421139145,1777153970769,16375.09551216,1e-08,2]
[421139146,1777153972011,16375.09551216,1e-08,2]
[421139147,1777153973287,16375.09551216,1e-08,2]
[421139148,1777153991109,4912.52865365,1e-08,2]
[421139149,1777153992349,4912.52865365,1e-08,2]
[421139150,1777153993580,4912.52865365,1e-08,2]
[421139151,1777153994811,4912.52865365,1e-08,2]
[421139152,1777153996411,4912.52865365,1e-08,2]
[421139153,1777153997890,4912.52865365,1e-08,2]
[421139154,1777153998882,4912.52865365,1e-08,2]
[421139155,1777154000116,4912.52865365,1e-08,2]
[421139156,1777154001346,4912.52865365,1e-08,2]
[421139157,1777154002575,4912.52865365,1e-08,2]
[421139158,1777154051580,1473.75859609,1e-08,2]
[421139159,1777154053126,1473.75859609,1e-08,2]
[421139160,1777154054372,1473.75859609,1e-08,2]
[421139161,1777154055613,1473.75859609,1e-08,2]
[421139162,1777154057123,1473.75859609,1e-08,2]
[421139163,1777154058369,1473.75859609,1e-08,2]
[421139164,1777154059953,1473.75859609,1e-08,2]
[421139165,1777154061543,1473.75859609,1e-08,2]
[421139166,1777154062807,1473.75859609,1e-08,2]
[421139167,1777154064062,1473.75859609,1e-08,2]
[421139168,1777154103462,442.12757883,1e-08,2]
[421139169,1777154104713,442.12757883,1e-08,2]
[421139170,1777154105923,442.12757883,1e-08,2]
[421139171,1777154107177,442.12757883,1e-08,2]
[421139172,1777154108415,442.12757883,1e-08,2]
[421139173,1777154109669,442.12757883,1e-08,2]
[421139174,1777154111102,442.12757883,1e-08,2]
[421139175,1777154112138,442.12757883,1e-08,2]
[421139176,1777154113400,442.12757883,1e-08,2]
[421139177,1777154117696,442.12757883,1e-08,2]
[421139235,1777154660837,460.44429281,0.0,2]
[421139237,1777154662045,383.70357734,1e-08,2]
[421139238,1777154663293,306.96286187,1e-08,2]
[421139239,1777154664884,230.2221464,1e-08,2]
[421139258,1777154833334,231.07482102,1e-08,2]
[421139259,1777154834571,231.07482102,1e-08,2]
[421139342,1777155032714,-321.97772359,9.646e-05,2]
[421139344,1777155032725,-555.0,9.646e-05,2]
[421139346,1777155032734,-150.0,9.879e-05,2]
[421139348,1777155032744,-500.0,0.00010141,2]
[421139349,1777155032753,-454.12281878,0.00010141,2]
[421139350,1777155032765,-45.87718122,0.00010141,2]
[421139352,1777155032774,-330.80392363,0.00010141,2]
[421139354,1777155032785,-463.6652506,0.00010141,2]
[421139356,1777155032795,-177.0,0.00011879,2]
[421139357,1777155032805,-160.0,0.00013633,2]
[421139360,1777155032814,-1000.0,0.00013699,2]
[421139361,1777155032824,-300.0,0.00013775,2]
[421139363,1777155032834,-442.0,0.00013776,2]
[421139365,1777155032843,-333.862,0.00013776,2]
[421139366,1777155032853,-204.0,0.00013879,2]
[421139367,1777155032864,-275.19971931,0.0001424,2]
[421139369,1777155032873,-884.8324471,0.00014738,2]
[421139372,1777155032886,-1265.9055529,0.00014738,2]
[421139374,1777155032895,-500.0,0.00014746,2]
[421139376,1777155032905,-500.0,0.00014746,2]
[421139378,1777155032914,-13797.10766223,0.00014747,2]
[421139379,1777155032923,-56994.7868162,0.00014747,2]
[421139394,1777155039199,-46588.51305982,0.00014747,2]
[421139395,1777155039210,-2028.97951315,0.00014747,2]
[421139396,1777155039223,-107.50019112,0.00014747,2]
[421139397,1777155039232,-2329.85797761,0.00014842,2]
[421139398,1777155039242,-1903.81332741,0.00014942,2]
[421139399,1777155039252,-269.0,0.00014993,2]
[421139400,1777155039262,-420.0,0.00015095,2]
[421139401,1777155039271,-1069.87179747,0.00015202,2]
[421139402,1777155039283,-1259.98618013,0.00015202,2]
[421139403,1777155039293,-445.202766,0.00015238,2]
[421139405,1777155039303,-289.54178116,0.00015238,2]
[421139406,1777155039312,-162.380719,0.00015238,2]
[421139407,1777155039321,-151.0,0.00015238,2]
[421139408,1777155039331,-537.6845,0.00015238,2]
[421139409,1777155039340,-104907.64051013,0.00015247,2]
[421139410,1777155039349,-151.0,0.00015247,2]
[421139411,1777155039359,-488.38362578,0.00015247,2]
[421139412,1777155039368,-151.0,0.00015247,2]
[421139413,1777155039377,-151.0,0.00015247,2]
[421139414,1777155039387,-151.0,0.00015247,2]
[421139415,1777155039396,-151.0,0.00015247,2]
[421139416,1777155039406,-151.68053369,0.00015247,2]
[421139417,1777155039415,-2402.87630243,0.00015267,2]
[421139418,1777155039425,-2230.315306,0.00015286,2]
[421139419,1777155039435,-300.0,0.0001529,2]
[421139420,1777155039444,-300.0,0.0001529,2]
[421139421,1777155039454,-300.0,0.0001529,2]
[421139422,1777155039463,-300.0,0.0001529,2]
[421139423,1777155039473,-300.0,0.0001529,2]
[421139424,1777155039482,-300.0,0.0001529,2]
[421139425,1777155039492,-300.0,0.0001529,2]
[421139426,1777155039502,-300.0,0.0001529,2]
[421139427,1777155039511,-300.0,0.0001529,2]